[Event "*** Titled Tuesday Blitz"]
[Site "Chess.com"]
[Date "2021.04.20"]
[Round "6"]
[White "MateusViageiro"]
[Black "leopato"]
[Result "1-0"]
[WhiteElo "2282"]
[BlackElo "2117"]
[TimeControl "180+1"]
[EndTime "11:04:57 PDT"]
[Termination "MateusViageiro won by checkmate"]

1. e4 {[%clk 0:03:00.5]} 1... c5 {[%clk 0:02:58.4]} 2. Nf3 {[%clk 0:02:59.9]}
2... d6 {[%clk 0:02:57.4]} 3. d4 {[%clk 0:02:59.6]} 3... cxd4 {[%clk 0:02:58.3]}
4. Nxd4 {[%clk 0:02:59.8]} 4... Nf6 {[%clk 0:02:58.3]} 5. Nc3 {[%clk 0:02:59.7]}
5... Nc6 {[%clk 0:02:58.5]} 6. f3 {[%clk 0:02:57.2]} 6... g6 {[%clk 0:02:56.5]}
7. Be3 {[%clk 0:02:56.5]} 7... Bg7 {[%clk 0:02:56.5]} 8. Qd2 {[%clk 0:02:55.3]}
8... O-O {[%clk 0:02:54.9]} 9. Bc4 {[%clk 0:02:54.5]} 9... Nd7 {[%clk
0:02:54.4]} 10. O-O-O {[%clk 0:02:53.3]} 10... Nb6 {[%clk 0:02:52.5]} 11. Be2
{[%clk 0:02:45.7]} 11... Ne5 {[%clk 0:02:49.9]} 12. b3 {[%clk 0:02:40.5]} 12...
Qc7 {[%clk 0:02:42.5]} 13. Kb1 {[%clk 0:02:38.1]} 13... Be6 {[%clk 0:02:32.5]}
14. Ncb5 {[%clk 0:02:28]} 14... Qd7 {[%clk 0:02:23.4]} 15. c4 {[%clk 0:02:26.6]}
15... a6 {[%clk 0:02:18.9]} 16. Nxe6 {[%clk 0:02:26.5]} 16... fxe6 {[%clk
0:02:17.5]} 17. Nd4 {[%clk 0:02:25.3]} 17... Rac8 {[%clk 0:01:51.9]} 18. Nxe6
{[%clk 0:02:18.8]} 18... Qxe6 {[%clk 0:01:50.9]} 19. Bxb6 {[%clk 0:02:17.3]}
19... Nc6 {[%clk 0:01:38.4]} 20. Qd5 {[%clk 0:02:15.8]} 20... Qf7 {[%clk
0:01:31]} 21. Qxf7+ {[%clk 0:02:14.7]} 21... Rxf7 {[%clk 0:01:30.9]} 22. h4
{[%clk 0:02:05.7]} 22... Ne5 {[%clk 0:01:22.6]} 23. Bd4 {[%clk 0:02:04.6]} 23...
e6 {[%clk 0:01:11.7]} 24. h5 {[%clk 0:02:02.1]} 24... g5 {[%clk 0:01:06.6]} 25.
Be3 {[%clk 0:01:59.5]} 25... h6 {[%clk 0:01:05.4]} 26. Rxd6 {[%clk 0:01:58.8]}
26... Rc6 {[%clk 0:00:56.5]} 27. Rhd1 {[%clk 0:01:55.6]} 27... Bf8 {[%clk
0:00:48.8]} 28. Rxc6 {[%clk 0:01:44.7]} 28... Nxc6 {[%clk 0:00:49.7]} 29. c5
{[%clk 0:01:41.2]} 29... Kg7 {[%clk 0:00:41.7]} 30. Bc4 {[%clk 0:01:40.6]} 30...
Kf6 {[%clk 0:00:40.4]} 31. a3 {[%clk 0:01:35.8]} 31... Ke5 {[%clk 0:00:36.5]}
32. b4 {[%clk 0:01:34.2]} 32... Be7 {[%clk 0:00:21.4]} 33. Kc2 {[%clk
0:01:32.7]} 33... Rf8 {[%clk 0:00:20.3]} 34. Kc3 {[%clk 0:01:28]} 34... Rd8
{[%clk 0:00:15.3]} 35. Rxd8 {[%clk 0:01:25.5]} 35... Bxd8 {[%clk 0:00:15.4]} 36.
a4 {[%clk 0:01:24.4]} 36... Na7 {[%clk 0:00:13.6]} 37. b5 {[%clk 0:01:21.9]}
37... axb5 {[%clk 0:00:12.9]} 38. axb5 {[%clk 0:01:22.1]} 38... Ba5+ {[%clk
0:00:12.7]} 39. Kd3 {[%clk 0:01:20.1]} 39... Nc8 {[%clk 0:00:12.4]} 40. g3
{[%clk 0:01:15.9]} 40... Ne7 {[%clk 0:00:11.3]} 41. Bd4# {[%clk 0:01:15.2]} 1-0

[Event "*** Titled Tuesday Blitz"]
[Site "Chess.com"]
[Date "2021.04.20"]
[Round "6"]
[White "moro182"]
[Black "CrushingKings"]
[Result "1-0"]
[WhiteElo "2707"]
[BlackElo "2504"]
[TimeControl "180+1"]
[EndTime "11:04:58 PDT"]
[Termination "moro182 won by resignation"]

1. d4 {[%clk 0:03:00.9]} 1... Nf6 {[%clk 0:02:51.1]} 2. c4 {[%clk 0:03:01.1]}
2... g6 {[%clk 0:02:51.4]} 3. Nc3 {[%clk 0:03:00.7]} 3... Bg7 {[%clk 0:02:50.9]}
4. e4 {[%clk 0:03:01.1]} 4... d6 {[%clk 0:02:51.6]} 5. Bd3 {[%clk 0:03:01.3]}
5... Nbd7 {[%clk 0:02:51.4]} 6. Nge2 {[%clk 0:03:01.8]} 6... e5 {[%clk
0:02:45.7]} 7. d5 {[%clk 0:03:01.6]} 7... a5 {[%clk 0:02:45.5]} 8. O-O {[%clk
0:03:01]} 8... Nc5 {[%clk 0:02:45.7]} 9. Bc2 {[%clk 0:03:00.8]} 9... Nh5 {[%clk
0:02:45.2]} 10. Be3 {[%clk 0:02:58.9]} 10... b6 {[%clk 0:02:45]} 11. Qd2 {[%clk
0:02:50.6]} 11... Bd7 {[%clk 0:02:37.5]} 12. b3 {[%clk 0:02:35.5]} 12... h6
{[%clk 0:02:28.7]} 13. a3 {[%clk 0:02:34]} 13... Bf6 {[%clk 0:02:27.3]} 14. b4
{[%clk 0:02:30.5]} 14... Nb7 {[%clk 0:02:27.2]} 15. Ba4 {[%clk 0:02:09.4]} 15...
Bxa4 {[%clk 0:02:06.7]} 16. Nxa4 {[%clk 0:02:09.2]} 16... Nf4 {[%clk 0:02:03.1]}
17. Nac3 {[%clk 0:01:53.6]} 17... Nxe2+ {[%clk 0:01:49.3]} 18. Qxe2 {[%clk
0:01:48.8]} 18... Bg5 {[%clk 0:01:46.1]} 19. Nb5 {[%clk 0:01:44.5]} 19... O-O
{[%clk 0:01:37.8]} 20. Qg4 {[%clk 0:01:30.1]} 20... Kg7 {[%clk 0:01:33.6]} 21.
f4 {[%clk 0:01:20.3]} 21... exf4 {[%clk 0:01:31.4]} 22. Bxf4 {[%clk 0:01:21.2]}
22... Re8 {[%clk 0:01:30.3]} 23. Bxg5 {[%clk 0:01:16.2]} 23... hxg5 {[%clk
0:01:31.2]} 24. Ra2 {[%clk 0:01:04.3]} 24... Qe7 {[%clk 0:01:05.7]} 25. Raf2
{[%clk 0:01:01.4]} 25... Rf8 {[%clk 0:01:06]} 26. Rf6 {[%clk 0:00:31.1]} 26...
axb4 {[%clk 0:01:06]} 27. axb4 {[%clk 0:00:30.7]} 27... Qxf6 {[%clk 0:00:29.3]}
28. Rxf6 {[%clk 0:00:29.9]} 28... Kxf6 {[%clk 0:00:30.2]} 29. h3 {[%clk
0:00:30]} 29... Ra1+ {[%clk 0:00:22.8]} 30. Kh2 {[%clk 0:00:29.6]} 30... Re8
{[%clk 0:00:23.4]} 31. Qf3+ {[%clk 0:00:27.4]} 31... Kg7 {[%clk 0:00:22.6]} 32.
Qc3+ {[%clk 0:00:27]} 1-0

[Event "*** Titled Tuesday Blitz"]
[Site "Chess.com"]
[Date "2021.04.20"]
[Round "6"]
[White "ZAbdumalik"]
[Black "eduardoperalta"]
[Result "0-1"]
[WhiteElo "2620"]
[BlackElo "2495"]
[TimeControl "180+1"]
[EndTime "11:05:02 PDT"]
[Termination "eduardoperalta won by resignation"]

1. e4 {[%clk 0:03:00.9]} 1... c5 {[%clk 0:02:59.8]} 2. Nf3 {[%clk 0:03:00.2]}
2... Nc6 {[%clk 0:03:00.3]} 3. d4 {[%clk 0:02:59.9]} 3... cxd4 {[%clk
0:03:01.2]} 4. Nxd4 {[%clk 0:03:00.6]} 4... Nf6 {[%clk 0:03:02.1]} 5. Nc3 {[%clk
0:03:00.5]} 5... d6 {[%clk 0:03:02.6]} 6. Bg5 {[%clk 0:02:59.6]} 6... e6 {[%clk
0:03:02.3]} 7. Qd2 {[%clk 0:03:00.1]} 7... Be7 {[%clk 0:03:02.2]} 8. O-O-O
{[%clk 0:02:59.4]} 8... O-O {[%clk 0:03:02.3]} 9. f3 {[%clk 0:02:59.4]} 9... a6
{[%clk 0:02:59.2]} 10. h4 {[%clk 0:02:58.4]} 10... Qc7 {[%clk 0:02:58.1]} 11. g4
{[%clk 0:02:56.7]} 11... Rd8 {[%clk 0:02:54.7]} 12. Be3 {[%clk 0:02:53.1]} 12...
b5 {[%clk 0:02:50.8]} 13. Nxc6 {[%clk 0:02:49.1]} 13... Qxc6 {[%clk 0:02:50.5]}
14. h5 {[%clk 0:02:50]} 14... b4 {[%clk 0:02:49.4]} 15. Ne2 {[%clk 0:02:49]}
15... d5 {[%clk 0:02:37.2]} 16. e5 {[%clk 0:02:30.6]} 16... Nd7 {[%clk
0:02:33.2]} 17. f4 {[%clk 0:02:20.5]} 17... Nc5 {[%clk 0:02:27.6]} 18. Bg2
{[%clk 0:02:14.9]} 18... b3 {[%clk 0:02:24.2]} 19. a3 {[%clk 0:02:00.6]} 19...
bxc2 {[%clk 0:02:22.6]} 20. Qxc2 {[%clk 0:02:01.2]} 20... a5 {[%clk 0:01:57.3]}
21. Nd4 {[%clk 0:01:58]} 21... Qb7 {[%clk 0:01:54.9]} 22. g5 {[%clk 0:01:52.2]}
22... Bd7 {[%clk 0:01:52]} 23. Qe2 {[%clk 0:01:09.6]} 23... Rdc8 {[%clk
0:01:47]} 24. Kb1 {[%clk 0:01:08.3]} 24... Na4 {[%clk 0:01:46.5]} 25. Ka1 {[%clk
0:00:53.4]} 25... Rab8 {[%clk 0:01:45.6]} 26. Rb1 {[%clk 0:00:48.9]} 26... Rc4
{[%clk 0:01:30.7]} 27. g6 {[%clk 0:00:46]} 27... Nc5 {[%clk 0:01:25.8]} 28.
gxf7+ {[%clk 0:00:40.1]} 28... Kxf7 {[%clk 0:01:25.2]} 29. Rhd1 {[%clk
0:00:27.4]} 29... Rxd4 {[%clk 0:01:15.6]} 30. Bxd4 {[%clk 0:00:27.3]} 30... Nb3+
{[%clk 0:01:15.4]} 31. Ka2 {[%clk 0:00:27.9]} 31... Bb5 {[%clk 0:01:15.1]} 32.
Qf2 {[%clk 0:00:14]} 32... Bc4 {[%clk 0:01:14.2]} 33. Bf1 {[%clk 0:00:14.9]}
33... Qb5 {[%clk 0:00:44.4]} 34. Bxc4 {[%clk 0:00:09.8]} 34... Qxc4 {[%clk
0:00:45.3]} 35. Qf1 {[%clk 0:00:10.4]} 35... Nc1+ {[%clk 0:00:45.3]} 0-1

[Event "*** Titled Tuesday Blitz"]
[Site "Chess.com"]
[Date "2021.04.20"]
[Round "6"]
[White "pirulillo"]
[Black "Trickster_Pony"]
[Result "0-1"]
[WhiteElo "2208"]
[BlackElo "1605"]
[TimeControl "180+1"]
[EndTime "11:05:02 PDT"]
[Termination "Trickster_Pony won by resignation"]

1. e4 {[%clk 0:02:58.9]} 1... c5 {[%clk 0:02:59.1]} 2. Nf3 {[%clk 0:02:58.5]}
2... g6 {[%clk 0:02:59.2]} 3. d4 {[%clk 0:02:54]} 3... cxd4 {[%clk 0:02:59.6]}
4. Nxd4 {[%clk 0:02:54.9]} 4... Bg7 {[%clk 0:02:55.3]} 5. c4 {[%clk 0:02:54.4]}
5... Nc6 {[%clk 0:02:54.1]} 6. Nc3 {[%clk 0:02:53.3]} 6... Nf6 {[%clk
0:02:54.5]} 7. Be3 {[%clk 0:02:52.8]} 7... O-O {[%clk 0:02:51.6]} 8. Be2 {[%clk
0:02:51.6]} 8... d6 {[%clk 0:02:49.4]} 9. O-O {[%clk 0:02:48.3]} 9... Nxd4
{[%clk 0:02:46.6]} 10. Bxd4 {[%clk 0:02:47.5]} 10... Bd7 {[%clk 0:02:47.1]} 11.
Qd3 {[%clk 0:02:32.7]} 11... a5 {[%clk 0:02:43.3]} 12. Rfd1 {[%clk 0:02:26.4]}
12... Bc6 {[%clk 0:02:41.2]} 13. f3 {[%clk 0:02:24.9]} 13... Nd7 {[%clk
0:02:38.3]} 14. b3 {[%clk 0:02:01.3]} 14... Nc5 {[%clk 0:02:31.3]} 15. Qd2
{[%clk 0:01:51.2]} 15... Qc7 {[%clk 0:02:08.5]} 16. Rac1 {[%clk 0:01:47]} 16...
Rad8 {[%clk 0:02:05.9]} 17. Rb1 {[%clk 0:01:30.9]} 17... e5 {[%clk 0:01:43.8]}
18. Be3 {[%clk 0:01:22.2]} 18... Ne6 {[%clk 0:01:42.5]} 19. Nb5 {[%clk
0:00:48.3]} 19... Bxb5 {[%clk 0:01:32.8]} 20. cxb5 {[%clk 0:00:49.2]} 20... Nd4
{[%clk 0:01:33.3]} 21. Bc4 {[%clk 0:00:48.8]} 21... Kh8 {[%clk 0:01:30.6]} 22.
Rdc1 {[%clk 0:00:46.3]} 22... Qb6 {[%clk 0:01:26.1]} 23. a4 {[%clk 0:00:43.8]}
23... Rc8 {[%clk 0:01:20]} 24. Bd5 {[%clk 0:00:40.4]} 24... f5 {[%clk
0:01:06.2]} 25. Bxd4 {[%clk 0:00:36.1]} 25... exd4 {[%clk 0:01:05.2]} 26. Qd3
{[%clk 0:00:31]} 26... fxe4 {[%clk 0:01:00]} 27. fxe4 {[%clk 0:00:22.5]} 27...
Rc3 {[%clk 0:00:51.3]} 28. Rxc3 {[%clk 0:00:21.5]} 28... dxc3+ {[%clk
0:00:51.6]} 29. Kh1 {[%clk 0:00:22.4]} 29... Qd4 {[%clk 0:00:36.3]} 30. Qxd4
{[%clk 0:00:21.9]} 30... Bxd4 {[%clk 0:00:37.2]} 31. Rc1 {[%clk 0:00:22]} 31...
Be3 {[%clk 0:00:30.5]} 0-1

[Event "*** Titled Tuesday Blitz"]
[Site "Chess.com"]
[Date "2021.04.20"]
[Round "6"]
[White "Kotofeyca"]
[Black "enriquebutti"]
[Result "0-1"]
[WhiteElo "2318"]
[BlackElo "2064"]
[TimeControl "180+1"]
[EndTime "11:05:05 PDT"]
[Termination "enriquebutti won on time"]

1. d4 {[%clk 0:03:00.9]} 1... Nf6 {[%clk 0:02:48.3]} 2. c4 {[%clk 0:03:01]} 2...
e6 {[%clk 0:02:47.1]} 3. Nf3 {[%clk 0:03:00.9]} 3... b6 {[%clk 0:02:46.3]} 4. g3
{[%clk 0:03:00.5]} 4... Ba6 {[%clk 0:02:44.8]} 5. Qa4 {[%clk 0:02:59.3]} 5... c5
{[%clk 0:02:41.4]} 6. Bg2 {[%clk 0:02:59.3]} 6... Bb7 {[%clk 0:02:39.6]} 7. dxc5
{[%clk 0:02:57.9]} 7... Bxc5 {[%clk 0:02:34.9]} 8. O-O {[%clk 0:02:57.5]} 8...
O-O {[%clk 0:02:33.4]} 9. Rd1 {[%clk 0:02:56.3]} 9... Ne4 {[%clk 0:02:31]} 10.
e3 {[%clk 0:02:53.2]} 10... d5 {[%clk 0:02:21.2]} 11. cxd5 {[%clk 0:02:45.9]}
11... exd5 {[%clk 0:02:19.9]} 12. a3 {[%clk 0:02:23.8]} 12... a5 {[%clk
0:02:11.3]} 13. Nbd2 {[%clk 0:02:14.7]} 13... Qe7 {[%clk 0:02:01.8]} 14. Qc2
{[%clk 0:01:38.9]} 14... Nxf2 {[%clk 0:01:57]} 15. Re1 {[%clk 0:01:23.5]} 15...
Ng4 {[%clk 0:01:52.2]} 16. Nb3 {[%clk 0:01:20.6]} 16... Bxe3+ {[%clk 0:01:38]}
17. Bxe3 {[%clk 0:00:54.1]} 17... Nxe3 {[%clk 0:01:36.6]} 18. Qd3 {[%clk
0:00:54.6]} 18... Re8 {[%clk 0:01:34.8]} 19. Nbd4 {[%clk 0:00:44]} 19... Qe4
{[%clk 0:01:06.8]} 20. Qb3 {[%clk 0:00:19.9]} 20... Nc6 {[%clk 0:00:54.9]} 21.
Nxc6 {[%clk 0:00:15]} 21... Bxc6 {[%clk 0:00:51.7]} 22. Qxb6 {[%clk 0:00:15]}
22... d4 {[%clk 0:00:49.4]} 23. Qxd4 {[%clk 0:00:11.6]} 23... Qxd4 {[%clk
0:00:42.5]} 24. Nxd4 {[%clk 0:00:12.5]} 24... Bxg2 {[%clk 0:00:39.6]} 25. Re2
{[%clk 0:00:06.9]} 25... Rad8 {[%clk 0:00:30.8]} 0-1

[Event "*** Titled Tuesday Blitz"]
[Site "Chess.com"]
[Date "2021.04.20"]
[Round "6"]
[White "Gusarov91"]
[Black "Oligan22"]
[Result "1-0"]
[WhiteElo "2647"]
[BlackElo "2492"]
[TimeControl "180+1"]
[EndTime "11:05:06 PDT"]
[Termination "Gusarov91 won by resignation"]

1. d4 {[%clk 0:02:59.9]} 1... Nf6 {[%clk 0:02:59.7]} 2. Nf3 {[%clk 0:03:00]}
2... e6 {[%clk 0:03:00.3]} 3. c4 {[%clk 0:03:00.6]} 3... b6 {[%clk 0:02:59.9]}
4. g3 {[%clk 0:03:01.1]} 4... Ba6 {[%clk 0:02:59.9]} 5. Qa4 {[%clk 0:03:00.3]}
5... Bb7 {[%clk 0:02:48.9]} 6. Bg2 {[%clk 0:03:00]} 6... c5 {[%clk 0:02:49.4]}
7. dxc5 {[%clk 0:02:59.8]} 7... bxc5 {[%clk 0:02:49.4]} 8. O-O {[%clk
0:03:00.3]} 8... Nc6 {[%clk 0:02:41.5]} 9. Nc3 {[%clk 0:03:00.3]} 9... Be7
{[%clk 0:02:39.9]} 10. Rd1 {[%clk 0:02:59.9]} 10... O-O {[%clk 0:02:37]} 11. Bf4
{[%clk 0:03:00]} 11... Qb6 {[%clk 0:02:31.6]} 12. Qb5 {[%clk 0:03:00]} 12... h6
{[%clk 0:02:01.9]} 13. Qxb6 {[%clk 0:02:56.1]} 13... axb6 {[%clk 0:02:02.8]} 14.
b3 {[%clk 0:02:56.5]} 14... Rfc8 {[%clk 0:01:34]} 15. Bd6 {[%clk 0:02:52.8]}
15... Kf8 {[%clk 0:01:24.4]} 16. Bxe7+ {[%clk 0:02:48]} 16... Kxe7 {[%clk
0:01:25.3]} 17. Rd2 {[%clk 0:02:47.4]} 17... d6 {[%clk 0:00:59.5]} 18. Rad1
{[%clk 0:02:46.4]} 18... Rd8 {[%clk 0:00:59.8]} 19. e3 {[%clk 0:02:30.3]} 19...
Rd7 {[%clk 0:00:59.3]} 20. Ne1 {[%clk 0:02:24.3]} 20... Ne8 {[%clk 0:00:55.5]}
21. Nd3 {[%clk 0:02:19.5]} 21... Nc7 {[%clk 0:00:53.5]} 22. Nb2 {[%clk
0:02:09.2]} 22... Na5 {[%clk 0:00:53.4]} 23. Nba4 {[%clk 0:02:07.7]} 23... Bxg2
{[%clk 0:00:48.8]} 24. Kxg2 {[%clk 0:02:08.2]} 24... Rb8 {[%clk 0:00:47.9]} 25.
f4 {[%clk 0:02:03.2]} 25... Nc6 {[%clk 0:00:46.4]} 26. Kf3 {[%clk 0:02:00.3]}
26... Nd8 {[%clk 0:00:33.9]} 27. h4 {[%clk 0:01:52.7]} 27... Nc6 {[%clk
0:00:21.9]} 28. h5 {[%clk 0:01:51.9]} 28... Rb7 {[%clk 0:00:20.4]} 29. g4 {[%clk
0:01:47.3]} 29... Rb8 {[%clk 0:00:20.4]} 30. Kf2 {[%clk 0:01:38.8]} 30... Rb7
{[%clk 0:00:20.4]} 31. e4 {[%clk 0:01:22.9]} 31... Rb8 {[%clk 0:00:20.6]} 32. e5
{[%clk 0:01:21.8]} 32... Ne8 {[%clk 0:00:19.4]} 33. Nb5 {[%clk 0:01:18.4]} 33...
d5 {[%clk 0:00:12.1]} 34. cxd5 {[%clk 0:01:18.3]} 34... exd5 {[%clk 0:00:12.9]}
35. Rxd5 {[%clk 0:01:18.4]} 35... Rxd5 {[%clk 0:00:13.3]} 36. Rxd5 {[%clk
0:01:19]} 36... Nb4 {[%clk 0:00:13]} 37. Rd2 {[%clk 0:01:17.1]} 37... Rb7 {[%clk
0:00:10.2]} 38. a3 {[%clk 0:01:09.7]} 38... Nc6 {[%clk 0:00:09.8]} 39. Nac3
{[%clk 0:01:08.8]} 39... Ke6 {[%clk 0:00:07.5]} 40. Ke3 {[%clk 0:01:02.3]} 40...
Nc7 {[%clk 0:00:07.7]} 41. Rd6+ {[%clk 0:01:01.3]} 41... Ke7 {[%clk 0:00:06.1]}
42. Rxc6 {[%clk 0:01:01.7]} 1-0

[Event "*** Titled Tuesday Blitz"]
[Site "Chess.com"]
[Date "2021.04.20"]
[Round "6"]
[White "winniethepooh04"]
[Black "bsnsun"]
[Result "0-1"]
[WhiteElo "2248"]
[BlackElo "2437"]
[TimeControl "180+1"]
[EndTime "11:05:13 PDT"]
[Termination "bsnsun won by checkmate"]

1. e4 {[%clk 0:03:00.9]} 1... e5 {[%clk 0:02:55.4]} 2. Nf3 {[%clk 0:03:00.4]}
2... Nc6 {[%clk 0:02:55.9]} 3. Bc4 {[%clk 0:03:00.3]} 3... Nf6 {[%clk
0:02:55.3]} 4. d3 {[%clk 0:02:59.7]} 4... Bc5 {[%clk 0:02:54.7]} 5. c3 {[%clk
0:02:59.6]} 5... d6 {[%clk 0:02:53]} 6. O-O {[%clk 0:02:59]} 6... a6 {[%clk
0:02:53.4]} 7. d4 {[%clk 0:02:59.1]} 7... exd4 {[%clk 0:02:27.9]} 8. cxd4 {[%clk
0:03:00]} 8... Bb6 {[%clk 0:02:27.8]} 9. Bg5 {[%clk 0:02:52.5]} 9... h6 {[%clk
0:02:25.1]} 10. Bh4 {[%clk 0:02:35.6]} 10... Bg4 {[%clk 0:02:22]} 11. d5 {[%clk
0:02:06.9]} 11... Ne5 {[%clk 0:02:18.3]} 12. Be2 {[%clk 0:02:06.8]} 12... Nxf3+
{[%clk 0:01:49.4]} 13. Bxf3 {[%clk 0:02:03.2]} 13... Bxf3 {[%clk 0:01:48.4]} 14.
Qxf3 {[%clk 0:02:02.8]} 14... Qe7 {[%clk 0:01:32.8]} 15. Nc3 {[%clk 0:01:58.1]}
15... O-O-O {[%clk 0:01:29]} 16. Rac1 {[%clk 0:01:51.9]} 16... g5 {[%clk
0:01:24.6]} 17. Bg3 {[%clk 0:01:49.6]} 17... h5 {[%clk 0:01:24.5]} 18. Qf5+
{[%clk 0:01:29.3]} 18... Kb8 {[%clk 0:01:21.3]} 19. e5 {[%clk 0:01:25.8]} 19...
Nd7 {[%clk 0:00:31.5]} 20. exd6 {[%clk 0:01:17]} 20... cxd6 {[%clk 0:00:32.4]}
21. Ne4 {[%clk 0:01:14.3]} 21... Ka7 {[%clk 0:00:18.1]} 22. Nxd6 {[%clk
0:00:56.7]} 22... h4 {[%clk 0:00:16.3]} 23. Nxf7 {[%clk 0:00:30.9]} 23... hxg3
{[%clk 0:00:15.8]} 24. Nxh8 {[%clk 0:00:12.3]} 24... gxf2+ {[%clk 0:00:16]} 25.
Kh1 {[%clk 0:00:11.3]} 25... Rxh8 {[%clk 0:00:16.5]} 26. d6 {[%clk 0:00:08.9]}
26... Qxd6 {[%clk 0:00:16.3]} 27. Rcd1 {[%clk 0:00:08]} 27... Qxh2# {[%clk
0:00:16]} 0-1

[Event "*** Titled Tuesday Blitz"]
[Site "Chess.com"]
[Date "2021.04.20"]
[Round "6"]
[White "chesshermar"]
[Black "ClydeHillKid"]
[Result "0-1"]
[WhiteElo "2216"]
[BlackElo "2417"]
[TimeControl "180+1"]
[EndTime "11:05:14 PDT"]
[Termination "ClydeHillKid won by resignation"]

1. e4 {[%clk 0:03:00.9]} 1... e6 {[%clk 0:02:59.3]} 2. d4 {[%clk 0:03:00.4]}
2... d5 {[%clk 0:02:58]} 3. Nd2 {[%clk 0:03:00.5]} 3... Nf6 {[%clk 0:02:54.9]}
4. e5 {[%clk 0:03:00.5]} 4... Nfd7 {[%clk 0:02:53.7]} 5. f4 {[%clk 0:03:01]}
5... c5 {[%clk 0:02:54.4]} 6. c3 {[%clk 0:02:53.4]} 6... Nc6 {[%clk 0:02:54.7]}
7. Ndf3 {[%clk 0:02:54.1]} 7... Qa5 {[%clk 0:02:53.8]} 8. Kf2 {[%clk 0:02:49.9]}
8... cxd4 {[%clk 0:02:52.8]} 9. cxd4 {[%clk 0:02:48.6]} 9... f6 {[%clk
0:02:49.4]} 10. g3 {[%clk 0:02:44.1]} 10... fxe5 {[%clk 0:02:48.4]} 11. fxe5
{[%clk 0:02:42.3]} 11... Be7 {[%clk 0:02:47.4]} 12. Bh3 {[%clk 0:02:42.3]} 12...
Qb6 {[%clk 0:02:19.1]} 13. Kg2 {[%clk 0:02:40]} 13... Nf8 {[%clk 0:01:58.2]} 14.
Ne2 {[%clk 0:02:38.8]} 14... Ng6 {[%clk 0:01:58.3]} 15. Bg5 {[%clk 0:02:20.3]}
15... Bxg5 {[%clk 0:01:54.9]} 16. Nxg5 {[%clk 0:02:21.2]} 16... O-O {[%clk
0:01:55.4]} 17. Nxe6 {[%clk 0:02:16.6]} 17... Bxe6 {[%clk 0:01:53.2]} 18. Bxe6+
{[%clk 0:02:17.5]} 18... Kh8 {[%clk 0:01:53.8]} 19. Bxd5 {[%clk 0:02:13.7]}
19... Ncxe5 {[%clk 0:01:52.8]} 20. Qb3 {[%clk 0:01:53]} 20... Ng4 {[%clk
0:01:40.6]} 21. Qxb6 {[%clk 0:01:45]} 21... axb6 {[%clk 0:01:41.5]} 22. Bxb7
{[%clk 0:01:38.9]} 22... Ne3+ {[%clk 0:01:33.2]} 23. Kh3 {[%clk 0:01:37]} 23...
Ra5 {[%clk 0:01:30.3]} 24. g4 {[%clk 0:01:22.8]} 24... Rf2 {[%clk 0:01:24.9]}
25. Rac1 {[%clk 0:01:09.1]} 25... h6 {[%clk 0:01:18.7]} 26. Rc8+ {[%clk
0:00:52.8]} 26... Kh7 {[%clk 0:01:18.2]} 27. Be4 {[%clk 0:00:34.2]} 27... Rxe2
{[%clk 0:01:16.4]} 28. Kg3 {[%clk 0:00:33.9]} 28... Nf1+ {[%clk 0:01:12.5]} 29.
Kf3 {[%clk 0:00:31]} 29... Re3+ {[%clk 0:01:12.6]} 30. Kg2 {[%clk 0:00:25]}
30... Rxe4 {[%clk 0:01:09.7]} 31. Rxf1 {[%clk 0:00:25.4]} 31... Rxa2 {[%clk
0:01:08.2]} 32. Rf2 {[%clk 0:00:20.7]} 32... Rxg4+ {[%clk 0:01:05.4]} 33. Kh3
{[%clk 0:00:19.6]} 33... Rxd4 {[%clk 0:01:01]} 34. Rc7 {[%clk 0:00:20.1]} 34...
Rf4 {[%clk 0:00:58.1]} 35. Rd2 {[%clk 0:00:18]} 35... Ne5 {[%clk 0:00:51]} 36.
Re2 {[%clk 0:00:15.7]} 36... Rf7 {[%clk 0:00:49.1]} 37. Rc3 {[%clk 0:00:07.5]}
37... Rf3+ {[%clk 0:00:47.9]} 38. Rxf3 {[%clk 0:00:08.1]} 38... Nxf3 {[%clk
0:00:48.8]} 39. Kg3 {[%clk 0:00:09]} 39... Nd4 {[%clk 0:00:47.9]} 40. h4 {[%clk
0:00:09.9]} 40... Nxe2+ {[%clk 0:00:48.1]} 0-1

[Event "*** Titled Tuesday Blitz"]
[Site "Chess.com"]
[Date "2021.04.20"]
[Round "6"]
[White "lider34"]
[Black "DanielTitichoca"]
[Result "0-1"]
[WhiteElo "2441"]
[BlackElo "2293"]
[TimeControl "180+1"]
[EndTime "11:05:15 PDT"]
[Termination "DanielTitichoca won by resignation"]

1. e4 {[%clk 0:02:59.2]} 1... c5 {[%clk 0:02:59.1]} 2. c3 {[%clk 0:02:58.5]}
2... e5 {[%clk 0:02:56.6]} 3. Nf3 {[%clk 0:02:57.7]} 3... Nc6 {[%clk 0:02:57]}
4. Bc4 {[%clk 0:02:58]} 4... Nf6 {[%clk 0:02:56]} 5. Ng5 {[%clk 0:02:54.1]} 5...
d5 {[%clk 0:02:54.7]} 6. exd5 {[%clk 0:02:53.9]} 6... Na5 {[%clk 0:02:55.2]} 7.
Bb5+ {[%clk 0:02:48.6]} 7... Bd7 {[%clk 0:02:55]} 8. Bxd7+ {[%clk 0:02:48.4]}
8... Qxd7 {[%clk 0:02:54.6]} 9. O-O {[%clk 0:02:47]} 9... Qxd5 {[%clk
0:02:45.7]} 10. d4 {[%clk 0:02:34.1]} 10... O-O-O {[%clk 0:02:40.4]} 11. Qa4
{[%clk 0:02:28.5]} 11... Nc6 {[%clk 0:02:37.9]} 12. dxe5 {[%clk 0:02:24.7]}
12... Nxe5 {[%clk 0:02:04.6]} 13. Qxa7 {[%clk 0:02:18.5]} 13... Bd6 {[%clk
0:02:04.1]} 14. Bf4 {[%clk 0:02:12.6]} 14... h6 {[%clk 0:02:00.3]} 15. Nh3
{[%clk 0:02:12.4]} 15... g5 {[%clk 0:01:59.5]} 16. Bg3 {[%clk 0:02:10]} 16...
Ne4 {[%clk 0:01:56.2]} 17. Na3 {[%clk 0:02:09.5]} 17... Bb8 {[%clk 0:01:51.5]}
18. Qa8 {[%clk 0:02:05]} 18... f5 {[%clk 0:01:48.8]} 19. Nb5 {[%clk 0:01:46.9]}
19... f4 {[%clk 0:01:44.1]} 20. Na7+ {[%clk 0:01:25.2]} 20... Kc7 {[%clk
0:01:43.2]} 21. Nb5+ {[%clk 0:01:20.6]} 21... Kb6 {[%clk 0:01:42]} 22. a4 {[%clk
0:00:55.4]} 22... fxg3 {[%clk 0:01:38.5]} 23. hxg3 {[%clk 0:00:50.1]} 23... Nd2
{[%clk 0:00:57]} 24. Rfd1 {[%clk 0:00:44]} 24... Nef3+ {[%clk 0:00:46.1]} 25.
gxf3 {[%clk 0:00:37.7]} 25... Nxf3+ {[%clk 0:00:45]} 26. Kh1 {[%clk 0:00:37.2]}
26... Qc6 {[%clk 0:00:35.9]} 27. Ng1 {[%clk 0:00:20.2]} 27... Nh4+ {[%clk
0:00:25.1]} 28. f3 {[%clk 0:00:18.8]} 28... Nxf3 {[%clk 0:00:25.6]} 29. Rxd8
{[%clk 0:00:16.2]} 29... Nh4+ {[%clk 0:00:21.5]} 30. Rd5 {[%clk 0:00:14.1]}
30... Qxd5+ {[%clk 0:00:21.4]} 0-1